Workbook

Sheet Kosten
B2: Projektabrechnung - laufende Kosten
B6: S | C6: aufgelaufene Kosten | H6: =SUM(H10:H1001) -> 27190 | J6: =SUM(J10:J1001) -> 22848.7395
B8: Datum | C8: Rechnungs- Nr. | D8: Projekt- Nr. | E8: Projekt-Bezeichnung | F8: Leistung / Material o.ä. | G8: Lieferant / Gläubiger | H8: Brutto EUR | I8: MwSt | J8: Netto EUR | K8: frei 1 | L8: frei 2 | M8: frei 3 | N8: frei 4
B9: Datum | C9: Mitarbeiter | D9: Projekt- Nr. | E9: Projekt-Bezeichnung | F9: Leistung / Material o.ä. | G9: Lieferant / Gläubiger | H9: Brutto EUR | I9: 19 % MwSt | J9: Netto EUR | K9: Skonto-Tage | L9: Skonto-% | M9: Netto-Tage | N9: frei
B10: 45495 | C10: 2596354 | D10: 4711 | E10: =IF(Kosten[[#This Row],[Projekt- Nr.]]="","",VLOOKUP(Kosten[[#This Row],[Projekt- Nr.]],Projektsummen[[Projekt- Nr.]:[Projekt-Bezeichnung]],2,0)) -> Umgestaltung | F10: Leistung ABC | G10: Fa. Soundso | H10: 1190 | I10: 0.19 | J10: =H10/(1+I10)*1 -> 1000
B11: 45558 | C11: 123456 | D11: 4713 | E11: =IF(Kosten[[#This Row],[Projekt- Nr.]]="","",VLOOKUP(Kosten[[#This Row],[Projekt- Nr.]],Projektsummen[[Projekt- Nr.]:[Projekt-Bezeichnung]],2,0)) -> Restrukturierung | F11: Leistung XYZ | G11: Fa. Gegenüber | H11: 2000 | I11: 0.19 | J11: =H11/(1+I11)*1 -> 1680.672269
B12: 45566 | C12: 3689245-A | D12: 4714 | E12: =IF(Kosten[[#This Row],[Projekt- Nr.]]="","",VLOOKUP(Kosten[[#This Row],[Projekt- Nr.]],Projektsummen[[Projekt- Nr.]:[Projekt-Bezeichnung]],2,0)) -> Rekultivierung | F12: Neues Material | G12: XYZ GmbH | H12: 4500 | I12: 0.19 | J12: 3781.512605
B13: 45567 | C13: 3689245-D | D13: 4714 | E13: =IF(Kosten[[#This Row],[Projekt- Nr.]]="","",VLOOKUP(Kosten[[#This Row],[Projekt- Nr.]],Projektsummen[[Projekt- Nr.]:[Projekt-Bezeichnung]],2,0)) -> Rekultivierung | F13: Weiteres Material | G13: Zett AG | H13: 2500 | I13: 0.19 | J13: 2100.840336
B14: 45568 | C14: 9563214 | D14: 4712 | E14: =IF(Kosten[[#This Row],[Projekt- Nr.]]="","",VLOOKUP(Kosten[[#This Row],[Projekt- Nr.]],Projektsummen[[Projekt- Nr.]:[Projekt-Bezeichnung]],2,0)) -> Neugestaltung | F14: Weiteres Material | G14: Zett AG | H14: 1500 | I14: 0.19 | J14: 1260.504202
B15: 45569 | C15: 9563215 | D15: 4712 | E15: =IF(Kosten[[#This Row],[Projekt- Nr.]]="","",VLOOKUP(Kosten[[#This Row],[Projekt- Nr.]],Projektsummen[[Projekt- Nr.]:[Projekt-Bezeichnung]],2,0)) -> Neugestaltung | F15: Anderes Material | G15: Zett AG | H15: 1000 | I15: 0.19 | J15: 840.3361345
B16: 45570 | C16: 9563216 | D16: 4712 | E16: =IF(Kosten[[#This Row],[Projekt- Nr.]]="","",VLOOKUP(Kosten[[#This Row],[Projekt- Nr.]],Projektsummen[[Projekt- Nr.]:[Projekt-Bezeichnung]],2,0)) -> Neugestaltung | F16: Weiteres Material | G16: Zett AG | H16: 2300 | I16: 0.19 | J16: 1932.773109
B17: 45572 | C17: 9563217 | D17: 4712 | E17: =IF(Kosten[[#This Row],[Projekt- Nr.]]="","",VLOOKUP(Kosten[[#This Row],[Projekt- Nr.]],Projektsummen[[Projekt- Nr.]:[Projekt-Bezeichnung]],2,0)) -> Neugestaltung | F17: Gutes Material | G17: Zett AG | H17: 2500 | I17: 0.19 | J17: 2100.840336
B18: 45573 | C18: 9563218 | D18: 4712 | E18: =IF(Kosten[[#This Row],[Projekt- Nr.]]="","",VLOOKUP(Kosten[[#This Row],[Projekt- Nr.]],Projektsummen[[Projekt- Nr.]:[Projekt-Bezeichnung]],2,0)) -> Neugestaltung | F18: Weiteres Material | G18: Zett AG | H18: 600 | I18: 0.19 | J18: 504.2016807
B19: 45574 | C19: 9563219 | D19: 4712 | E19: =IF(Kosten[[#This Row],[Projekt- Nr.]]="","",VLOOKUP(Kosten[[#This Row],[Projekt- Nr.]],Projektsummen[[Projekt- Nr.]:[Projekt-Bezeichnung]],2,0)) -> Neugestaltung | F19: Weiteres Material | G19: Zett AG | H19: 4900 | I19: 0.19 | J19: 4117.647059
B20: 45575 | C20: 56824566 | D20: 5689 | E20: =IF(Kosten[[#This Row],[Projekt- Nr.]]="","",VLOOKUP(Kosten[[#This Row],[Projekt- Nr.]],Projektsummen[[Projekt- Nr.]:[Projekt-Bezeichnung]],2,0)) -> Neustart | F20: Service Leistung | G20: Service Truppe | H20: 2000 | I20: 0.19 | J20: =H20/(1+I20)*1 -> 1680.672269
B21: 45576 | C21: 56824566 | D21: 5689 | E21: =IF(Kosten[[#This Row],[Projekt- Nr.]]="","",VLOOKUP(Kosten[[#This Row],[Projekt- Nr.]],Projektsummen[[Projekt- Nr.]:[Projekt-Bezeichnung]],2,0)) -> Neustart | F21: Service Leistung | G21: Service Truppe | H21: 2200 | I21: 0.19 | J21: =H21/(1+I21)*1 -> 1848.739496
P64: Weitere Projekt-Tools finden Sie auf
P65: https://www.ControllerSpielwiese.de

Sheet Zeiten
B2: Projektabrechnung - Arbeitszeiterfassung
B6: S | C6: aufgelaufene Zeiten | G6: =SUM(G9:G1000) -> 85 | I6: =SUM(I9:I1000) -> 1724 | J6: =SUM(J9:J1000) -> 48 | K6: =SUM(K9:K1000) -> 1772
B8: Datum | C8: Mitarbeiter | D8: Projekt- Nr. | E8: Projekt-Bezeichnung | F8: Leistung / Material o.ä. | G8: Anzahl Std. | H8: Stundensatz EUR | I8: Arbeitszeit EUR | J8: Spesen EUR | K8: S Personalkosten EUR | L8: frei1 | M8: frei2
B9: 45495 | C9: Mitarbeiter 1 | D9: 4711 | E9: =IF(Zeiten[[#This Row],[Projekt- Nr.]]="","",VLOOKUP(Zeiten[[#This Row],[Projekt- Nr.]],Projektsummen[[Projekt- Nr.]:[Projekt-Bezeichnung]],2,0)) -> Umgestaltung | F9: umgestalten | G9: 5 | H9: 24 | I9: =Zeiten[[#This Row],[Anzahl Std.]]*Zeiten[[#This Row],[Stundensatz EUR]] -> 120 | K9: =Zeiten[[#This Row],[Spesen EUR]]+Zeiten[[#This Row],[Arbeitszeit EUR]] -> 120
B10: 45558 | C10: Mitarbeiter 3 | D10: 4713 | E10: =IF(Zeiten[[#This Row],[Projekt- Nr.]]="","",VLOOKUP(Zeiten[[#This Row],[Projekt- Nr.]],Projektsummen[[Projekt- Nr.]:[Projekt-Bezeichnung]],2,0)) -> Restrukturierung | F10: restrukturieren | G10: 12 | H10: 16 | I10: =Zeiten[[#This Row],[Anzahl Std.]]*Zeiten[[#This Row],[Stundensatz EUR]] -> 192 | J10: 24 | K10: =Zeiten[[#This Row],[Spesen EUR]]+Zeiten[[#This Row],[Arbeitszeit EUR]] -> 216
B11: 45566 | C11: Mitarbeiter 5 | D11: 4714 | E11: =IF(Zeiten[[#This Row],[Projekt- Nr.]]="","",VLOOKUP(Zeiten[[#This Row],[Projekt- Nr.]],Projektsummen[[Projekt- Nr.]:[Projekt-Bezeichnung]],2,0)) -> Rekultivierung | F11: rekultivieren | G11: 8 | H11: 23 | I11: =Zeiten[[#This Row],[Anzahl Std.]]*Zeiten[[#This Row],[Stundensatz EUR]] -> 184 | K11: =Zeiten[[#This Row],[Spesen EUR]]+Zeiten[[#This Row],[Arbeitszeit EUR]] -> 184
B12: 45567 | C12: Mitarbeiter 1 | D12: 4712 | E12: =IF(Zeiten[[#This Row],[Projekt- Nr.]]="","",VLOOKUP(Zeiten[[#This Row],[Projekt- Nr.]],Projektsummen[[Projekt- Nr.]:[Projekt-Bezeichnung]],2,0)) -> Neugestaltung | F12: rekultivieren | G12: 8 | H12: 24 | I12: =Zeiten[[#This Row],[Anzahl Std.]]*Zeiten[[#This Row],[Stundensatz EUR]] -> 192 | K12: =Zeiten[[#This Row],[Spesen EUR]]+Zeiten[[#This Row],[Arbeitszeit EUR]] -> 192
B13: 45568 | C13: Mitarbeiter 2 | D13: 4712 | E13: =IF(Zeiten[[#This Row],[Projekt- Nr.]]="","",VLOOKUP(Zeiten[[#This Row],[Projekt- Nr.]],Projektsummen[[Projekt- Nr.]:[Projekt-Bezeichnung]],2,0)) -> Neugestaltung | F13: rekultivieren | G13: 8 | H13: 18.5 | I13: =Zeiten[[#This Row],[Anzahl Std.]]*Zeiten[[#This Row],[Stundensatz EUR]] -> 148 | K13: =Zeiten[[#This Row],[Spesen EUR]]+Zeiten[[#This Row],[Arbeitszeit EUR]] -> 148
B14: 45569 | C14: Mitarbeiter 1 | D14: 4712 | E14: =IF(Zeiten[[#This Row],[Projekt- Nr.]]="","",VLOOKUP(Zeiten[[#This Row],[Projekt- Nr.]],Projektsummen[[Projekt- Nr.]:[Projekt-Bezeichnung]],2,0)) -> Neugestaltung | F14: rekultivieren | G14: 10 | H14: 24 | I14: =Zeiten[[#This Row],[Anzahl Std.]]*Zeiten[[#This Row],[Stundensatz EUR]] -> 240 | K14: =Zeiten[[#This Row],[Spesen EUR]]+Zeiten[[#This Row],[Arbeitszeit EUR]] -> 240
B15: 45570 | C15: Mitarbeiter 2 | D15: 4712 | E15: =IF(Zeiten[[#This Row],[Projekt- Nr.]]="","",VLOOKUP(Zeiten[[#This Row],[Projekt- Nr.]],Projektsummen[[Projekt- Nr.]:[Projekt-Bezeichnung]],2,0)) -> Neugestaltung | F15: rekultivieren | G15: 8 | H15: 18.5 | I15: =Zeiten[[#This Row],[Anzahl Std.]]*Zeiten[[#This Row],[Stundensatz EUR]] -> 148 | K15: =Zeiten[[#This Row],[Spesen EUR]]+Zeiten[[#This Row],[Arbeitszeit EUR]] -> 148
B16: 45572 | C16: Mitarbeiter 1 | D16: 4712 | E16: =IF(Zeiten[[#This Row],[Projekt- Nr.]]="","",VLOOKUP(Zeiten[[#This Row],[Projekt- Nr.]],Projektsummen[[Projekt- Nr.]:[Projekt-Bezeichnung]],2,0)) -> Neugestaltung | F16: rekultivieren | G16: 8 | H16: 24 | I16: =Zeiten[[#This Row],[Anzahl Std.]]*Zeiten[[#This Row],[Stundensatz EUR]] -> 192 | J16: 12 | K16: =Zeiten[[#This Row],[Spesen EUR]]+Zeiten[[#This Row],[Arbeitszeit EUR]] -> 204
B17: 45573 | C17: Mitarbeiter 2 | D17: 4712 | E17: =IF(Zeiten[[#This Row],[Projekt- Nr.]]="","",VLOOKUP(Zeiten[[#This Row],[Projekt- Nr.]],Projektsummen[[Projekt- Nr.]:[Projekt-Bezeichnung]],2,0)) -> Neugestaltung | F17: rekultivieren | G17: 8 | H17: 18.5 | I17: =Zeiten[[#This Row],[Anzahl Std.]]*Zeiten[[#This Row],[Stundensatz EUR]] -> 148 | J17: 12 | K17: =Zeiten[[#This Row],[Spesen EUR]]+Zeiten[[#This Row],[Arbeitszeit EUR]] -> 160
B18: 45574 | C18: Mitarbeiter 3 | D18: 4712 | E18: =IF(Zeiten[[#This Row],[Projekt- Nr.]]="","",VLOOKUP(Zeiten[[#This Row],[Projekt- Nr.]],Projektsummen[[Projekt- Nr.]:[Projekt-Bezeichnung]],2,0)) -> Neugestaltung | F18: rekultivieren | G18: 10 | H18: 16 | I18: =Zeiten[[#This Row],[Anzahl Std.]]*Zeiten[[#This Row],[Stundensatz EUR]] -> 160 | K18: =Zeiten[[#This Row],[Spesen EUR]]+Zeiten[[#This Row],[Arbeitszeit EUR]] -> 160
O63: Weitere Projekt-Tools finden Sie auf
O64: https://www.ControllerSpielwiese.de

Sheet Projektsummen
B2: Projektabrechnung - Übersicht / Summen aller Projekte
B6: S | C6: aufgelaufene Zeiten | D6: =SUM(Projektsummen[Kosten EUR]) -> 22848.7395 | E6: =SUM(Projektsummen[Zeiten h]) -> 85 | F6: =SUM(Projektsummen[Zeiten EUR]) -> 1724 | G6: =SUM(Projektsummen[Spesen EUR]) -> 48 | H6: =SUM(Projektsummen[Personal EUR]) -> 1772 | I6: =SUM(Projektsummen[Summe EUR]) -> 24620.7395
B8: Projekt- Nr. | C8: Projekt-Bezeichnung | D8: Kosten EUR | E8: Zeiten h | F8: Zeiten EUR | G8: Spesen EUR | H8: Personal EUR | I8: Summe EUR | J8: frei 1 | K8: frei 2 | L8: frei 3
B9: 4711 | C9: Umgestaltung | D9: =SUMIF(Kosten[[Projekt- Nr.]:[Netto EUR]],B9,Kosten[Netto EUR]) -> 1000 | E9: =SUMIF(Zeiten[[Projekt- Nr.]:[Arbeitszeit EUR]],B9,Zeiten[Anzahl Std.]) -> 5 | F9: =SUMIF(Zeiten[[Projekt- Nr.]:[Arbeitszeit EUR]],B9,Zeiten[Arbeitszeit EUR]) -> 120 | G9: =SUMIF(Zeiten[[Projekt- Nr.]:[Spesen EUR]],B9,Zeiten[Spesen EUR]) -> 0 | H9: =F9+G9 -> 120 | I9: =D9+H9 -> 1120
B10: 4712 | C10: Neugestaltung | D10: =SUMIF(Kosten[[Projekt- Nr.]:[Netto EUR]],B10,Kosten[Netto EUR]) -> 10756.30252 | E10: =SUMIF(Zeiten[[Projekt- Nr.]:[Arbeitszeit EUR]],B10,Zeiten[Anzahl Std.]) -> 60 | F10: =SUMIF(Zeiten[[Projekt- Nr.]:[Arbeitszeit EUR]],B10,Zeiten[Arbeitszeit EUR]) -> 1228 | G10: =SUMIF(Zeiten[[Projekt- Nr.]:[Spesen EUR]],B10,Zeiten[Spesen EUR]) -> 24 | H10: =F10+G10 -> 1252 | I10: =D10+H10 -> 12008.30252
B11: 4713 | C11: Restrukturierung | D11: =SUMIF(Kosten[[Projekt- Nr.]:[Netto EUR]],B11,Kosten[Netto EUR]) -> 1680.672269 | E11: =SUMIF(Zeiten[[Projekt- Nr.]:[Arbeitszeit EUR]],B11,Zeiten[Anzahl Std.]) -> 12 | F11: =SUMIF(Zeiten[[Projekt- Nr.]:[Arbeitszeit EUR]],B11,Zeiten[Arbeitszeit EUR]) -> 192 | G11: =SUMIF(Zeiten[[Projekt- Nr.]:[Spesen EUR]],B11,Zeiten[Spesen EUR]) -> 24 | H11: =F11+G11 -> 216 | I11: =D11+H11 -> 1896.672269
B12: 4714 | C12: Rekultivierung | D12: =SUMIF(Kosten[[Projekt- Nr.]:[Netto EUR]],B12,Kosten[Netto EUR]) -> 5882.352941 | E12: =SUMIF(Zeiten[[Projekt- Nr.]:[Arbeitszeit EUR]],B12,Zeiten[Anzahl Std.]) -> 8 | F12: =SUMIF(Zeiten[[Projekt- Nr.]:[Arbeitszeit EUR]],B12,Zeiten[Arbeitszeit EUR]) -> 184 | G12: =SUMIF(Zeiten[[Projekt- Nr.]:[Spesen EUR]],B12,Zeiten[Spesen EUR]) -> 0 | H12: =F12+G12 -> 184 | I12: =D12+H12 -> 6066.352941
B13: 5689 | C13: Neustart | D13: =SUMIF(Kosten[[Projekt- Nr.]:[Netto EUR]],B13,Kosten[Netto EUR]) -> 3529.411765 | E13: =SUMIF(Zeiten[[Projekt- Nr.]:[Arbeitszeit EUR]],B13,Zeiten[Anzahl Std.]) -> 0 | F13: =SUMIF(Zeiten[[Projekt- Nr.]:[Arbeitszeit EUR]],B13,Zeiten[Arbeitszeit EUR]) -> 0 | G13: =SUMIF(Zeiten[[Projekt- Nr.]:[Spesen EUR]],B13,Zeiten[Spesen EUR]) -> 0 | H13: =F13+G13 -> 0 | I13: =D13+H13 -> 3529.411765
N59: Weitere Projekt-Tools finden Sie auf
N60: https://www.ControllerSpielwiese.de

Sheet Projektdetails
B2: Projektabrechnung - Projektdetails
B6: S | C6: aller / gefilterter Kosten und Stunden | J6: =SUBTOTAL(9,J9:J5006) -> 22848.7395 | K6: =SUBTOTAL(9,K9:K5006) -> 85 | M6: =SUBTOTAL(9,M9:M5006) -> 1724 | N6: =SUBTOTAL(9,N9:N5006) -> 48 | O6: =SUBTOTAL(9,O9:O5006) -> 1772 | P6: =SUBTOTAL(9,P9:P5006) -> 24620.7395
B8: Datum | C8: Mitarbeiter/ Re-Nr. | D8: Projekt- Nr. | E8: Projekt-Bezeichnung | F8: Leistung / Material o.ä. | G8: Lieferant / Gläubiger | H8: Kosten brutto EUR | I8: MwSt 19 % | J8: Kosten netto EUR | K8: Anzahl Std. | L8: Stundensatz EUR | M8: Arbeitszeit EUR | N8: Spesen EUR | O8: S Personal- kosten EUR | P8: S Projekt- kosten EUR
B9: 45495 | C9: 2596354 | D9: 4711 | E9: Umgestaltung | F9: Leistung ABC | G9: Fa. Soundso | H9: 1190 | I9: 0.19 | J9: 1000 | P9: =J9+O9 -> 1000
B10: 45495 | C10: Mitarbeiter 1 | D10: 4711 | E10: Umgestaltung | F10: umgestalten | K10: 5 | L10: 24 | M10: 120 | O10: 120 | P10: =J10+O10 -> 120
B11: 45558 | C11: 123456 | D11: 4713 | E11: Restrukturierung | F11: Leistung XYZ | G11: Fa. Gegenüber | H11: 2000 | I11: 0.19 | J11: 1680.672269 | P11: =J11+O11 -> 1680.672269
B12: 45558 | C12: Mitarbeiter 3 | D12: 4713 | E12: Restrukturierung | F12: restrukturieren | K12: 12 | L12: 16 | M12: 192 | N12: 24 | O12: 216 | P12: =J12+O12 -> 216
B13: 45566 | C13: 3689245-A | D13: 4714 | E13: Rekultivierung | F13: Neues Material | G13: XYZ GmbH | H13: 4500 | I13: 0.19 | J13: 3781.512605 | P13: =J13+O13 -> 3781.512605
B14: 45566 | C14: Mitarbeiter 5 | D14: 4714 | E14: Rekultivierung | F14: rekultivieren | K14: 8 | L14: 23 | M14: 184 | O14: 184 | P14: =J14+O14 -> 184
B15: 45567 | C15: 3689245-D | D15: 4714 | E15: Rekultivierung | F15: Weiteres Material | G15: Zett AG | H15: 2500 | I15: 0.19 | J15: 2100.840336 | P15: =J15+O15 -> 2100.840336
B16: 45567 | C16: Mitarbeiter 1 | D16: 4712 | E16: Neugestaltung | F16: rekultivieren | K16: 8 | L16: 24 | M16: 192 | O16: 192 | P16: =J16+O16 -> 192
B17: 45568 | C17: 9563214 | D17: 4712 | E17: Neugestaltung | F17: Weiteres Material | G17: Zett AG | H17: 1500 | I17: 0.19 | J17: 1260.504202 | P17: =J17+O17 -> 1260.504202
B18: 45568 | C18: Mitarbeiter 2 | D18: 4712 | E18: Neugestaltung | F18: rekultivieren | K18: 8 | L18: 18.5 | M18: 148 | O18: 148 | P18: =J18+O18 -> 148
B19: 45569 | C19: 9563215 | D19: 4712 | E19: Neugestaltung | F19: Anderes Material | G19: Zett AG | H19: 1000 | I19: 0.19 | J19: 840.3361345 | P19: =J19+O19 -> 840.3361345
B20: 45569 | C20: Mitarbeiter 1 | D20: 4712 | E20: Neugestaltung | F20: rekultivieren | K20: 10 | L20: 24 | M20: 240 | O20: 240 | P20: =J20+O20 -> 240
B21: 45570 | C21: 9563216 | D21: 4712 | E21: Neugestaltung | F21: Weiteres Material | G21: Zett AG | H21: 2300 | I21: 0.19 | J21: 1932.773109 | P21: =J21+O21 -> 1932.773109
B22: 45570 | C22: Mitarbeiter 2 | D22: 4712 | E22: Neugestaltung | F22: rekultivieren | K22: 8 | L22: 18.5 | M22: 148 | O22: 148 | P22: =J22+O22 -> 148
B23: 45572 | C23: 9563217 | D23: 4712 | E23: Neugestaltung | F23: Gutes Material | G23: Zett AG | H23: 2500 | I23: 0.19 | J23: 2100.840336 | P23: =J23+O23 -> 2100.840336
B24: 45572 | C24: Mitarbeiter 1 | D24: 4712 | E24: Neugestaltung | F24: rekultivieren | K24: 8 | L24: 24 | M24: 192 | N24: 12 | O24: 204 | P24: =J24+O24 -> 204
B25: 45573 | C25: 9563218 | D25: 4712 | E25: Neugestaltung | F25: Weiteres Material | G25: Zett AG | H25: 600 | I25: 0.19 | J25: 504.2016807 | P25: =J25+O25 -> 504.2016807
B26: 45573 | C26: Mitarbeiter 2 | D26: 4712 | E26: Neugestaltung | F26: rekultivieren | K26: 8 | L26: 18.5 | M26: 148 | N26: 12 | O26: 160 | P26: =J26+O26 -> 160
B27: 45574 | C27: 9563219 | D27: 4712 | E27: Neugestaltung | F27: Weiteres Material | G27: Zett AG | H27: 4900 | I27: 0.19 | J27: 4117.647059 | P27: =J27+O27 -> 4117.647059
B28: 45574 | C28: Mitarbeiter 3 | D28: 4712 | E28: Neugestaltung | F28: rekultivieren | K28: 10 | L28: 16 | M28: 160 | O28: 160 | P28: =J28+O28 -> 160
B29: 45575 | C29: 56824566 | D29: 5689 | E29: Neustart | F29: Service Leistung | G29: Service Truppe | H29: 2000 | I29: 0.19 | J29: 1680.672269 | P29: =J29+O29 -> 1680.672269
B30: 45576 | C30: 56824566 | D30: 5689 | E30: Neustart | F30: Service Leistung | G30: Service Truppe | H30: 2200 | I30: 0.19 | J30: 1848.739496 | P30: =J30+O30 -> 1848.739496
P31: =J31+O31 -> 0
P32: =J32+O32 -> 0
P33: =J33+O33 -> 0
P34: =J34+O34 -> 0
P35: =J35+O35 -> 0
P36: =J36+O36 -> 0
P37: =J37+O37 -> 0
P38: =J38+O38 -> 0
P39: =J39+O39 -> 0
P40: =J40+O40 -> 0
P41: =J41+O41 -> 0
P42: =J42+O42 -> 0
P43: =J43+O43 -> 0
P44: =J44+O44 -> 0
P45: =J45+O45 -> 0
P46: =J46+O46 -> 0
P47: =J47+O47 -> 0
P54: =J54+O54 -> 0
P55: =J55+O55 -> 0
P56: =J56+O56 -> 0
P57: =J57+O57 -> 0
P58: =J58+O58 -> 0
P59: =J59+O59 -> 0
P60: =J60+O60 -> 0 | R60: Weitere Projekt-Tools finden Sie auf
P61: =J61+O61 -> 0 | R61: https://www.ControllerSpielwiese.de
P62: =J62+O62 -> 0
P63: =J63+O63 -> 0
P64: =J64+O64 -> 0
P65: =J65+O65 -> 0
P66: =J66+O66 -> 0
P67: =J67+O67 -> 0
P68: =J68+O68 -> 0
P69: =J69+O69 -> 0
P70: =J70+O70 -> 0
P71: =J71+O71 -> 0
P72: =J72+O72 -> 0
P73: =J73+O73 -> 0
P74: =J74+O74 -> 0
P75: =J75+O75 -> 0
P76: =J76+O76 -> 0
P77: =J77+O77 -> 0
P78: =J78+O78 -> 0
P79: =J79+O79 -> 0
P80: =J80+O80 -> 0
P81: =J81+O81 -> 0
P82: =J82+O82 -> 0
P83: =J83+O83 -> 0
P84: =J84+O84 -> 0
P85: =J85+O85 -> 0
P86: =J86+O86 -> 0
P87: =J87+O87 -> 0
P88: =J88+O88 -> 0
P89: =J89+O89 -> 0
P90: =J90+O90 -> 0
P91: =J91+O91 -> 0
P92: =J92+O92 -> 0
P93: =J93+O93 -> 0
P94: =J94+O94 -> 0
P95: =J95+O95 -> 0
P96: =J96+O96 -> 0
P97: =J97+O97 -> 0
P98: =J98+O98 -> 0
P99: =J99+O99 -> 0
P100: =J100+O100 -> 0
P101: =J101+O101 -> 0
P102: =J102+O102 -> 0
P103: =J103+O103 -> 0
P104: =J104+O104 -> 0
P105: =J105+O105 -> 0
P106: =J106+O106 -> 0
P107: =J107+O107 -> 0
P108: =J108+O108 -> 0
P109: =J109+O109 -> 0
P110: =J110+O110 -> 0
P111: =J111+O111 -> 0
P112: =J112+O112 -> 0
P113: =J113+O113 -> 0
P114: =J114+O114 -> 0
P115: =J115+O115 -> 0
P116: =J116+O116 -> 0
P117: =J117+O117 -> 0
P118: =J118+O118 -> 0
P119: =J119+O119 -> 0
P120: =J120+O120 -> 0
P121: =J121+O121 -> 0
P122: =J122+O122 -> 0
P123: =J123+O123 -> 0
P124: =J124+O124 -> 0
P125: =J125+O125 -> 0
P126: =J126+O126 -> 0
P127: =J127+O127 -> 0
P128: =J128+O128 -> 0
P129: =J129+O129 -> 0
P130: =J130+O130 -> 0
P131: =J131+O131 -> 0
P132: =J132+O132 -> 0
P133: =J133+O133 -> 0
P134: =J134+O134 -> 0
P135: =J135+O135 -> 0
P136: =J136+O136 -> 0
P137: =J137+O137 -> 0
P138: =J138+O138 -> 0
P139: =J139+O139 -> 0
P140: =J140+O140 -> 0
P141: =J141+O141 -> 0
P142: =J142+O142 -> 0
P143: =J143+O143 -> 0
P144: =J144+O144 -> 0
P145: =J145+O145 -> 0
P146: =J146+O146 -> 0
P147: =J147+O147 -> 0
P148: =J148+O148 -> 0
P149: =J149+O149 -> 0
P150: =J150+O150 -> 0
P151: =J151+O151 -> 0
P152: =J152+O152 -> 0
P153: =J153+O153 -> 0
P154: =J154+O154 -> 0
P155: =J155+O155 -> 0
P156: =J156+O156 -> 0
P157: =J157+O157 -> 0
P158: =J158+O158 -> 0
P159: =J159+O159 -> 0
P160: =J160+O160 -> 0
P161: =J161+O161 -> 0
P162: =J162+O162 -> 0
P163: =J163+O163 -> 0
P164: =J164+O164 -> 0
P165: =J165+O165 -> 0
P166: =J166+O166 -> 0
P167: =J167+O167 -> 0
P168: =J168+O168 -> 0
P169: =J169+O169 -> 0
P170: =J170+O170 -> 0
P171: =J171+O171 -> 0
P172: =J172+O172 -> 0
P173: =J173+O173 -> 0
P174: =J174+O174 -> 0
P175: =J175+O175 -> 0
P176: =J176+O176 -> 0
P177: =J177+O177 -> 0
P178: =J178+O178 -> 0
P179: =J179+O179 -> 0
P180: =J180+O180 -> 0
P181: =J181+O181 -> 0
P182: =J182+O182 -> 0
P183: =J183+O183 -> 0
P184: =J184+O184 -> 0
P185: =J185+O185 -> 0
P186: =J186+O186 -> 0
P187: =J187+O187 -> 0
P188: =J188+O188 -> 0
P189: =J189+O189 -> 0
P190: =J190+O190 -> 0
P191: =J191+O191 -> 0
P192: =J192+O192 -> 0
P193: =J193+O193 -> 0
P194: =J194+O194 -> 0
P195: =J195+O195 -> 0
P196: =J196+O196 -> 0
P197: =J197+O197 -> 0
P198: =J198+O198 -> 0
P199: =J199+O199 -> 0
P200: =J200+O200 -> 0
P201: =J201+O201 -> 0
P202: =J202+O202 -> 0
P203: =J203+O203 -> 0
P204: =J204+O204 -> 0
P205: =J205+O205 -> 0
P206: =J206+O206 -> 0
P207: =J207+O207 -> 0
P208: =J208+O208 -> 0
P209: =J209+O209 -> 0
P210: =J210+O210 -> 0
P211: =J211+O211 -> 0
... 4795 more rows

Sheet Anwendungshilfe
B2: Anwendungshilfe für die Projektkostenerfassung
B6: Inhaltsübersicht
C8: 1. | D8: Technische Informationen zur Anwendung des Tools
C9: 2. | D9: Praktische Hinweise zum Erstellen/Ausfüllen der Projektkostenerfassung
C10: 3. | D10: Kostenlose Version vers. Premiumversion
C11: 4. | D11: Betriebswirtschaftliche Betrachtungen zur Projektkostenerfassung
B13: =CONCATENATE($C$8," ",$D$8) -> 1. Technische Informationen zur Anwendung des Tools
C15: Das Tool besteht aktuell aus den folgenden Tabellenblättern und enthält keine Makros
C16: Die einzelnen Tabellenblätter beinhalten: | E16: Wechsel zu Blatt …
D17: » Kostenerfassung | E17: Kosten
D18: » Zeiterfassung | E18: Zeiten
D19: » Summen der Kosten und Zeiten je Projekt | E19: Projektsummen
D20: » Detailübersicht der einzelnen Positionen | E20: Projektdetails
D21: » Anwendungshilfe (dieses Tabellenblatt)
C23: Dieses Tool dient zur Erfassung und Analyse von Kosten und Zeiten, welche in Projekten anfallen oder auf Aufträge geschrieben werden
C24: Es werden einige Excel-Funktionen und -Tricks verwendet, welche in der Premiumversion zusätzlich in Kommentaren erläutert werden
C25: Dies sind u.a. folgende Funktionen in alphabetischer Reihenfolge:
D27: HEUTE
D28: SUMME
D29: SVERWEIS
D30: TEILERGEBNIS
D31: WENN
D32: sowie Bedingte Formatierungen und Sprungmarken mit Hyperlinks auf Zellen und Namen
C34: Tabellenblatt: Kosten
C36: In dem Tabellenblatt "Kosten" können eingehende Rechnungen für Materialien, Dienstleistungen u.ä. erfasst werden
C37: Sind noch keine Projekte angelegt oder ist das Projekt neu, so müssen zunächst Projekt-Nr. und -bezeichnung erfasst werden
C38: Wenn die Projekt-Nr. und die Projektbezeichnung im Tabellenblatt "Projektsummen" vorhanden sind,
C39: steht die Projekt-Nr. hier per Dropdown-Liste zur Verfügung und die Bezeichnung wird nach deren Eingabe automatisch ergänzt
C40: Für die Erfassung der ersten Datensätze können die Beispieldaten einfach überschrieben oder gelöscht werden
C41: Neue Rechnung eingeben:
C42: In die nächste, freie Zeile unterhalb der formatierten Tabelle in Spalte B das Datum der neuen Rechnung eingeben
C43: Die Dynamische Tabelle erweitert sich dadurch entsprechend um eine neue Zeile und weitere Daten der Rechnung können eingegeben werden
C44: Die Projekt-Nr. ist über die Dropdown-Liste zu wählen, kann aber auch händisch eingegeben werden
C45: Bei einer fehlerhaften oder nicht in dem Tabellenblatt "Projektsummen" angelegten Projekt-Nr. erscheint eine Fehlermeldung
C46: Die Nettosumme berechnet sich automatisch anhand des Bruttobetrages und des MwSt-Satzes (als ganze Zahl eingeben)
C47: In den ausgeblendeten Spalten K-N können weitere Daten wie z.B. Planwerte, Kostenarten, u.ä. eingetragen werden
C49: Tabellenblatt: Zeiten
C51: die folgende Inhalte enhält nur die Premiumversion
C65: Tabellenblatt: Projektsummen
C81: Tabellenblatt: Projektdetails
C92: Makro:
B98: =CONCATENATE($C$9," ",$D$9) -> 2. Praktische Hinweise zum Erstellen/Ausfüllen der Projektkostenerfassung
B113: =CONCATENATE($C$10," ",$D$10) -> 3. Kostenlose Version vers. Premiumversion
C115: Kostenlose Version der Projektkostenerfassung
C117: Die vorliegende, kostenlose Version der Projektkostenerfassung wird zur ausschließlichen privaten
C118: oder auch persönlichen Nutzung in Unternehmen bereitgestellt. Die Struktur und die Daten in dieser Datei unterliegen
C119: dem Urheberschutz. Sie können für den eigenen Gebrauch abgeändert und erweitert werden.
C120: Eine kommerzielle Nutzung sowie eine Weitergabe an Dritte ob entgeltlich oder unentgeltlich sind nicht gestattet
C121: Sollten Sie die Datei weiterentwickeln, würden wir und unsere Community uns über Ihr Update freuen…
C122: Über einen freiwilligen Obolus in Anerkennung unseres kostenfreien Angebotes freuen wir uns selbstverständlich auch:
D123: Auf https://ko-fi.com/controllerspielwiese können Sie uns gerne einen Kaffee spendieren …
C124: Wenn Ihnen unsere Arbeit gefällt, können Sie kostenfrei Mitglied auf der CS werden:
D125: https://www.controllerspielwiese.de/inhalte/wir/formular-mitglied-werden.php
C126: Sie bekommen dann unseren ca. 6-8 mal im Jahr erscheinenden Newsletter zugeschickt
C128: Premiumversion der Projektkostenerfassung
C130: In der Premiumversion sind alle Formeln und Funktionen frei zugänglich und veränderbar
C131: Das Makro für die Erstellung der Projektdetails kann bis zu 4.992 Datensätze verarbeiten
C132: Im Tabellenblatt "Kosten" können in Spalte K Bezeichnungen für die Kosten eingegeben werden, z.B. analog zur BWA
C133: Es besteht kein Schreibschutz und alle Felder, Formeln und Kommentare sind frei änder- und löschbar
C134: Die dynamischen Tabellen beinhalten nur zwei Beispieldatensätze. Somit sind die umfangreichen Beispieldaten nicht zuvor zu löschen
C135: Die Datei enthält zusätzlich betriebswirtschaftliche Betrachtungen zur Projektkostenerfassung als Teil des Projektcontrollings
C137: Wenn Sie Interesse an der Premiumversion der Projektkostenerfassung haben, können Sie diese für EUR 8,98 inkl. MwSt erwerben:
C138: 1. | D138: Sie senden eine E-Mail an Service@ControllerSpielwiese.de mit Ihrer Rechnungsadresse und dem Stichwort Projektkostenerfassung
C139: 2. | D139: Wir senden Ihnen die Premiumversion umgehend während unserer Bürozeiten per E-Mail zu
C140: 3. | D140: Sie erhalten Ihre Rechnung inkl. MwSt. per E-Mail zusammen mit Ihrer Datei
C142: Für das Funktionieren des Tools in Ihrer Umgebung sowie evtl. Folgeschäden übernehmen wir keine Haftung
C143: Wir gewähren jedoch einen freiwilligen E-Mail-Support während unserer Bürozeiten
C144: Das Tool wird aus dem Feedback unserer Mitglieder weiterentwickelt, updates sind kostenfrei erhältlich
B147: =CONCATENATE($C$11," ",$D$11) -> 4. Betriebswirtschaftliche Betrachtungen zur Projektkostenerfassung
J205: oben
